fUST/lending_fUST_20260130
["ID","MTS","AMOUNT","RATE_DAILY","PERIOD"]
[404029793,1769753441158,-153.0,0.00011685,2]
[404029794,1769753441168,-153.0,0.00011685,2]
[404029795,1769753441177,-153.0,0.00011685,2]
[404029796,1769753441187,-153.0,0.00011685,2]
[404029797,1769753441196,-153.0,0.00011685,2]
[404029798,1769753441205,-153.0,0.00011685,2]
[404029799,1769753441214,-298.17623178,0.00011685,2]
[404029800,1769753441224,-166.0,0.00011791,2]
[404029801,1769753441234,-164.0,0.00011791,2]
[404029802,1769753441244,-164.0,0.00011791,2]
[404029803,1769753441253,-164.0,0.00011791,2]
[404029804,1769753441263,-164.0,0.00011791,2]
[404029805,1769753441273,-226.41806384,0.00011791,2]
[404029806,1769753441283,-720.0,0.00011802,2]
[404029807,1769753441292,-209.26583926,0.00012026,2]
[404029808,1769753441302,-2111.66336286,0.00012057,2]
[404029809,1769753441311,-7438.53,0.00012329,2]
[404029810,1769753441321,-6198.78,0.00012329,2]
[404029811,1769753441330,-5165.65,0.00012329,2]
[404029812,1769753441340,-4304.7,0.00012329,2]
[404029813,1769753441349,-3587.25,0.00012329,2]
[404029814,1769753441358,-2989.38,0.00012329,2]
[404029815,1769753441368,-2491.15,0.00012329,2]
[404029816,1769753441378,-2075.96,0.00012329,2]
[404029817,1769753441388,-1729.96,0.00012329,2]
[404029818,1769753441398,-1729.96,0.00012329,2]
[404029819,1769753441408,-1153.31,0.00012329,2]
[404029820,1769753441418,-961.09,0.00012329,2]
[404029821,1769753441428,-800.91,0.00012329,2]
[404029822,1769753441438,-667.43,0.00012329,2]
[404029823,1769753441448,-556.19,0.00012329,2]
[404029824,1769753441458,-463.49,0.00012329,2]
[404029825,1769753441469,-386.24,0.00012329,2]
[404029826,1769753441478,-321.87,0.00012329,2]
[404029827,1769753441488,-268.22,0.00012329,2]
[404029828,1769753441499,-223.52,0.00012329,2]
[404029829,1769753441511,-186.27,0.00012329,2]
[404029830,1769753441522,-155.22,0.00012329,2]
[404029831,1769753441534,-776.13,0.00012329,2]
[404029832,1769753441546,-151.0,0.00012329,2]
[404029833,1769753441557,-151.0,0.00012329,2]
[404029834,1769753441567,-151.0,0.00012329,2]
[404029835,1769753441576,-151.0,0.00012329,2]
[404029836,1769753441586,-151.0,0.00012329,2]
[404029837,1769753441596,-151.0,0.00012329,2]
[404029838,1769753441605,-1112.0,0.00012535,2]
[404029839,1769753441615,-1112.0,0.00012587,2]
[404029840,1769753441624,-1112.0,0.00012665,2]
[404029841,1769753441634,-1112.0,0.00012688,2]
[404029842,1769753441643,-1112.0,0.0001279,2]
[404029843,1769753441653,-156.65,0.000129,2]
[404029844,1769753441662,-1112.0,0.00012905,2]
[404029845,1769753441672,-1112.0,0.00012972,2]
[404029846,1769753441681,-1112.0,0.00012981,2]
[404029847,1769753441691,-864.0,0.00012983,2]
[404029848,1769753441700,-1112.0,0.00013065,2]
[404029849,1769753441710,-1112.0,0.00013085,2]
[404029850,1769753441719,-1112.0,0.00013184,2]
[404029851,1769753441730,-1112.0,0.00013268,2]
[404029852,1769753441739,-500.0,0.00013273,2]
[404029853,1769753441748,-523.78631543,0.00013273,2]
[404029854,1769753441757,-316.20523184,0.00013273,2]
[404029855,1769753441766,-500.0,0.00013273,2]
[404029856,1769753441776,-178.51822719,0.00013273,2]
[404029857,1769753441785,-500.0,0.00013273,2]
[404029858,1769753441794,-501.39030922,0.00013273,2]
[404029859,1769753441803,-500.0,0.00013273,2]
[404029860,1769753441813,-500.0,0.00013273,2]
[404029861,1769753441822,-500.0,0.00013273,2]
[404029862,1769753441832,-151.0,0.00013273,2]
[404029863,1769753441841,-151.0,0.00013273,2]
[404029864,1769753441850,-151.0,0.00013273,2]
[404029865,1769753441859,-1112.0,0.00013276,2]
[404029866,1769753441869,-160.0,0.00013295,2]
[404029867,1769753441878,-1112.0,0.00013312,2]
[404029868,1769753441887,-1112.0,0.0001333,2]
[404029869,1769753441896,-1112.0,0.00013346,2]
[404029870,1769753441906,-1112.0,0.00013358,2]
[404029871,1769753441915,-1112.0,0.00013418,2]
[404029872,1769753441925,-151.0,0.00013418,2]
[404029873,1769753441934,-151.0,0.00013418,2]
[404029874,1769753441944,-151.0,0.00013418,2]
[404029875,1769753441953,-1112.0,0.00013431,2]
[404029876,1769753441966,-150.0,0.00013432,2]
[404029877,1769753441975,-1112.0,0.00013473,2]
[404029878,1769753441984,-303.99908025,0.00013548,2]
[404029879,1769753441994,-1112.0,0.00013572,2]
[404029880,1769753442004,-1112.0,0.00013617,2]
[404029881,1769753442013,-300.0,0.00013673,2]
[404029882,1769753442023,-1041.66666667,0.00013675,2]
[404029883,1769753442035,-532.61284177,0.00013698,2]
[404029884,1769753442045,-500.0,0.00013699,2]
[404029885,1769753442055,-23534.7177118,0.00013699,2]
[404029886,1769753442064,-1000.0,0.00013699,2]
[404029887,1769753442073,-151.0,0.00013699,2]
[404029888,1769753442083,-157.760201,0.00013699,2]
[404029889,1769753442093,-1642.612323,0.00013699,2]
[404029890,1769753442102,-298.056944,0.00013699,2]
[404029891,1769753442111,-298.056944,0.00013699,2]
[404029892,1769753442120,-298.056944,0.00013699,2]
[404029893,1769753442130,-298.056944,0.00013699,2]
[404029894,1769753442139,-298.056944,0.00013699,2]
[404029895,1769753442148,-298.056944,0.00013699,2]
[404029896,1769753442158,-298.056944,0.00013699,2]
[404029897,1769753442168,-298.056944,0.00013699,2]
[404029898,1769753442177,-298.056944,0.00013699,2]
[404029899,1769753442186,-298.056944,0.00013699,2]
[404029900,1769753442196,-298.056944,0.00013699,2]
[404029901,1769753442205,-298.056944,0.00013699,2]
[404029902,1769753442214,-298.056944,0.00013699,2]
[404029903,1769753442224,-298.056944,0.00013699,2]
[404029904,1769753442233,-298.056944,0.00013699,2]
[404029905,1769753442243,-298.056944,0.00013699,2]
[404029906,1769753442252,-250.18572055,0.00013699,2]
[404029907,1769753442262,-505.5503841,0.00013699,2]
[404029908,1769753442271,-500.0,0.00013699,2]
[404029909,1769753442281,-500.0,0.00013699,2]
[404029910,1769753442290,-500.0,0.00013699,2]
[404029911,1769753442300,-500.0,0.00013699,2]
[404029912,1769753442309,-500.0,0.00013699,2]
[404029913,1769753442318,-500.0,0.00013699,2]
[404029914,1769753442328,-500.0,0.00013699,2]
[404029915,1769753442338,-476.44948864,0.00013699,2]
[404029916,1769753442347,-500.0,0.00013699,2]
[404029917,1769753442356,-256.8627111,0.00013699,2]
[404029918,1769753442366,-151.0,0.00013699,2]
[404029919,1769753442375,-151.0,0.00013699,2]
[404029920,1769753442384,-151.0,0.00013699,2]
[404029921,1769753442393,-151.0,0.00013768,2]
[404029922,1769753442403,-151.0,0.00013768,2]
[404029923,1769753442413,-151.0,0.00013768,2]
[404029924,1769753442422,-298.056944,0.00013768,2]
[404029925,1769753442432,-298.056944,0.00013768,2]
[404029926,1769753442441,-298.056944,0.00013768,2]
[404029927,1769753442450,-298.05694,0.00013768,2]
[404029928,1769753442460,-1112.0,0.00013768,2]
[404029929,1769753442470,-1112.0,0.00013793,2]
[404029930,1769753442480,-1112.0,0.000138,2]
[404029931,1769753442497,-1091.2,0.00013821,2]
[404029932,1769753442509,-593.69315787,0.00013821,2]
[404029933,1769753442518,-1002.23208146,0.00013821,2]
[404029934,1769753442528,-1000.0,0.00013821,2]
[404029935,1769753442537,-1000.0,0.00013821,2]
[404029936,1769753442548,-1000.0,0.00013821,2]
[404029937,1769753442559,-303.23610904,0.00013859,7]
[404029938,1769753442569,-600.0,0.00014221,2]
[404029939,1769753442578,-964.60345707,0.00014247,2]
[404029940,1769753442588,-317.68763522,0.00014247,2]
[404029941,1769753442597,-1000.0,0.00014247,2]
[404029942,1769753442607,-1000.0,0.00014247,2]
[404029943,1769753442616,-1000.0,0.00014247,2]
[404029944,1769753442627,-1000.0,0.00014247,2]
[404029945,1769753442636,-1000.0,0.00014247,2]
[404029946,1769753442646,-1000.0,0.00014281,2]
[404029947,1769753442655,-1500.0,0.00014368,2]
[404029948,1769753442666,-1500.0,0.00014368,2]
[404029949,1769753442676,-150.26,0.000144,2]
[404029950,1769753442686,-160.0,0.00014623,3]
[404029951,1769753442696,-160.0,0.00014735,4]
[404029952,1769753442706,-600.0,0.00014768,2]
[404029953,1769753442716,-1011.95718996,0.00014795,2]
[404029954,1769753442726,-1500.0,0.00014795,2]
[404029955,1769753442736,-1002.00482854,0.00014795,2]
[404029956,1769753442746,-501.6271235,0.00014795,2]
[404029957,1769753442755,-1500.0,0.00014795,2]
[404029958,1769753442765,-160.0,0.00014847,5]
[404029959,1769753442774,-1500.0,0.00014916,2]
[404029960,1769753442784,-2000.0,0.00014916,2]
[404029961,1769753442793,-160.0,0.0001496,6]
[404029962,1769753442802,-187.526844,0.00015068,2]
[404029963,1769753442812,-160.0,0.00015072,7]
[404029964,1769753442821,-160.0,0.00015184,8]
[404029965,1769753442831,-160.0,0.00015296,9]
[404029966,1769753442841,-150.26,0.000153,2]
[404029967,1769753442850,-2000.0,0.00015342,2]
[404029968,1769753442860,-753.06435971,0.00015342,2]
[404029969,1769753442870,-959.68,0.00015364,2]
[404029970,1769753442879,-959.68,0.00015364,2]
[404029971,1769753442888,-959.68,0.00015364,2]
[404029972,1769753442898,-959.68,0.00015364,2]
[404029973,1769753442908,-959.68,0.00015364,2]
[404029974,1769753442917,-959.68,0.00015364,2]
[404029975,1769753442926,-959.68,0.00015364,2]
[404029976,1769753442936,-959.68,0.00015364,2]
[404029977,1769753442945,-959.68,0.00015364,2]
[404029978,1769753442957,-959.68,0.00015364,2]
[404029979,1769753442969,-959.68,0.00015364,2]
[404029980,1769753442979,-959.68,0.00015364,2]
[404029981,1769753442989,-959.68,0.00015364,2]
[404029982,1769753442999,-959.68,0.00015364,2]
[404029983,1769753443008,-959.68,0.00015364,2]
[404029984,1769753443018,-959.68,0.00015364,2]
[404029985,1769753443027,-959.68,0.00015364,2]
[404029986,1769753443038,-959.68,0.00015364,2]
[404029987,1769753443048,-959.68,0.00015364,2]
[404029988,1769753443057,-959.68,0.00015364,2]
[404029989,1769753443066,-959.68,0.00015364,2]
[404029990,1769753443076,-959.68,0.00015364,2]
[404029991,1769753443086,-959.68,0.00015364,2]
[404029992,1769753443096,-959.68,0.00015364,2]
[404029993,1769753443107,-959.68,0.00015364,2]
[404029994,1769753443117,-959.68,0.00015364,2]
[404029995,1769753443127,-959.68,0.00015364,2]
[404029996,1769753443138,-959.68,0.00015364,2]
[404029997,1769753443147,-959.68,0.00015364,2]
[404029998,1769753443157,-959.68,0.00015364,2]
[404029999,1769753443168,-959.68,0.00015364,2]
[404030000,1769753443178,-959.68,0.00015364,2]
[404030001,1769753443188,-959.68,0.00015364,2]
[404030002,1769753443198,-1354.3,0.00015364,2]
[404030003,1769753443208,-160.0,0.00015409,10]
[404030004,1769753443217,-202.68824605,0.00015464,2]
[404030005,1769753443227,-160.0,0.00015521,11]
[404030006,1769753443236,-344.23425264,0.00015548,2]
[404030007,1769753443245,-200.0,0.00015618,3]
[404030008,1769753443255,-200.0,0.00015633,3]
[404030009,1769753443265,-160.0,0.00015633,12]
[404030010,1769753443274,-200.0,0.00015649,3]
[404030011,1769753443283,-1000.0,0.00015709,2]
[404030012,1769753443292,-244.0,0.00015709,2]
[404030013,1769753443301,-160.0,0.00015746,13]
[404030014,1769753443311,-160.0,0.000158,2]
[404030015,1769753443320,-160.0,0.000158,2]
[404030016,1769753443329,-156.65,0.000158,2]
[404030017,1769753443338,-160.0,0.00015858,14]
[404030018,1769753443347,-2500.0,0.0001589,2]
[404030019,1769753443356,-160.0,0.0001597,15]
[404030020,1769753443366,-952.70152331,0.00016065,2]
[404030021,1769753443375,-160.0,0.00016083,16]
[404030022,1769753443505,-150.26,0.000161,2]
[404030023,1769753443514,-160.0,0.00016195,17]
[404030024,1769753443523,-160.0,0.000163,2]
[404030025,1769753443533,-160.0,0.000163,2]
[404030026,1769753443541,-160.0,0.00016307,18]
[404030027,1769753443550,-160.0,0.00016419,19]
[404030028,1769753443559,-500.0,0.00016438,2]
[404030029,1769753443569,-500.0,0.00016438,2]
[404030030,1769753443578,-500.0,0.00016438,2]
[404030031,1769753443587,-500.0,0.00016438,2]
[404030032,1769753443596,-500.0,0.00016438,2]
[404030033,1769753443605,-500.0,0.00016438,2]
[404030034,1769753443614,-500.0,0.00016438,2]
[404030035,1769753443623,-500.0,0.00016438,2]
[404030036,1769753443632,-500.0,0.00016438,2]
[404030037,1769753443641,-500.0,0.00016438,2]
[404030038,1769753443650,-500.0,0.00016438,2]
[404030039,1769753443659,-500.0,0.00016438,2]
[404030040,1769753443669,-500.0,0.00016438,2]
[404030041,1769753443677,-430.0,0.00016438,2]
[404030042,1769753443686,-151.0,0.00016438,2]
[404030043,1769753443695,-151.0,0.00016438,2]
[404030044,1769753443703,-1000.0,0.00016438,2]
[404030045,1769753443713,-378.7931414,0.00016493,2]
[404030046,1769753443722,-378.7931414,0.00016493,2]
[404030047,1769753443732,-378.7931414,0.00016493,2]
[404030048,1769753443741,-378.7931414,0.00016493,2]
[404030049,1769753443752,-618.2109149,0.00016493,2]
[404030050,1769753443761,-160.0,0.00016532,20]
[404030051,1769753443770,-389.4271264,0.0001663,2]
[404030052,1769753443780,-160.0,0.00016644,21]
[404030053,1769753443789,-246.37207133,0.00016644,5]
[404030054,1769753443799,-1758.79472617,0.000169,2]
[404030055,1769753443808,-150.26,0.00017,2]
[404030056,1769753443817,-1000.0,0.0001728,2]
[404030057,1769753443826,-492.0,0.0001728,2]
[404030058,1769753443836,-384.46942502,0.00017548,2]
[404030059,1769753443845,-150.26,0.000179,2]
[404030060,1769753443854,-285.42546991,0.00018318,2]
[404030061,1769753443862,-156.65,0.000186,2]
[404030062,1769753443871,-717.23907623,0.000187,3]
[404030063,1769753443880,-150.26,0.000188,2]
[404030064,1769753443889,-303.10001603,0.000189,2]
[404030065,1769753443898,-104236.3547059,0.00018998,2]
[404030066,1769753443907,-1000.0,0.00019008,2]
[404030067,1769753443916,-791.0,0.00019008,2]
[404030068,1769753443924,-303.10001661,0.00019089,2]
[404030069,1769753443933,-604.1333812,0.00019096,2]
[404030070,1769753443942,-154.8884315,0.00019096,2]
[404030071,1769753443952,-604.1333812,0.00019096,2]
[404030072,1769753443964,-373.7225993,0.00019096,2]
[404030073,1769753443974,-604.1333812,0.00019096,2]
[404030074,1769753443983,-153.0,0.00019096,2]
[404030075,1769753443992,-616.8529993,0.00019096,2]
[404030076,1769753444002,-604.1333812,0.00019096,2]
[404030077,1769753444011,-198.1424325,0.00019123,2]
[404030078,1769753444020,-508.2088,0.00019178,2]
[404030079,1769753444030,-200.0,0.00019178,2]
[404030080,1769753444040,-303.54,0.00019178,2]
[404030081,1769753444049,-181.903392,0.00019178,2]
[404030082,1769753444058,-181.903392,0.00019178,2]
[404030083,1769753444067,-181.903392,0.00019178,2]
[404030084,1769753444076,-181.903392,0.00019178,2]
[404030085,1769753444085,-181.903392,0.00019178,2]
[404030086,1769753444095,-181.903392,0.00019178,2]
[404030087,1769753444104,-181.903392,0.00019178,2]
[404030088,1769753444114,-181.903392,0.00019178,2]
[404030089,1769753444123,-181.903392,0.00019178,2]
[404030090,1769753444132,-181.903392,0.00019178,2]
[404030091,1769753444142,-181.903392,0.00019178,2]
[404030092,1769753444152,-181.903392,0.00019178,2]
[404030093,1769753444161,-181.903392,0.00019178,2]
[404030094,1769753444171,-181.903392,0.00019178,2]
[404030095,1769753444180,-181.903392,0.00019178,2]
[404030096,1769753444190,-181.903392,0.00019178,2]
[404030097,1769753444199,-181.903392,0.00019178,2]
[404030098,1769753444209,-181.903392,0.00019178,2]
[404030099,1769753444218,-181.903392,0.00019178,2]
[404030100,1769753444227,-181.903398,0.00019178,2]
[404030101,1769753444237,-4999.82,0.000192,2]
[404030102,1769753444246,-153.25,0.000192,2]
[404030104,1769753444256,-1826.07,0.000192,2]
[404030106,1769753444265,-1411.314998,0.000195,2]
[404030107,1769753444274,-424.70459741,0.00019548,2]
[404030109,1769753444283,-150.26,0.000196,2]
[404030110,1769753444293,-1758.79472614,0.000199,2]
[404030111,1769753444302,-508.2088,0.0002,4]
[404030112,1769753444311,-618.0,0.0002,6]
[404030113,1769753444321,-1000.0,0.0002,2]
[404030114,1769753444330,-150.103899,0.0002,2]
[404030115,1769753444340,-29999.24,0.0002,10]
[404030116,1769753444349,-174.60888764,0.00020384,3]
[404030117,1769753444359,-508.2088,0.00020411,5]
[404030118,1769753444369,-150.26,0.000205,2]
[404030119,1769753444379,-1642.612323,0.00020548,2]
[404030120,1769753444390,-1391.48293036,0.0002061,2]
[404030121,1769753444407,-1211.73149174,0.00020718,7]
[404030122,1769753444417,-3806.99528713,0.00020754,2]
[404030123,1769753444427,-1000.0,0.00020909,2]
[404030124,1769753444436,-1000.0,0.00020909,2]
[404030125,1769753444445,-160.0,0.00021,7]
[404030126,1769753444455,-160.0,0.00021,7]
[404030127,1769753444464,-277.85191582,0.00021,2]
[404030128,1769753444473,-18751.05997614,0.00021,2]
[404030129,1769753444483,-3000.0,0.00021,2]
[404030130,1769753444493,-3000.0,0.0002101,2]
[404030131,1769753444502,-3000.0,0.0002102,2]
[404030132,1769753444512,-3000.0,0.0002103,2]
[404030133,1769753444521,-3000.0,0.0002104,2]
[404030134,1769753444530,-3000.0,0.0002105,2]
[404030135,1769753444539,-3000.0,0.0002106,2]
[404030136,1769753444548,-3000.0,0.0002107,2]
[404030137,1769753444557,-3000.0,0.0002108,2]
[404030138,1769753444566,-3000.0,0.0002109,2]
[404030139,1769753444575,-1425.65074365,0.000211,2]
[404030140,1769753444592,-1574.34925635,0.000211,2]
[404030141,1769753444601,-3000.0,0.0002111,2]
[404030142,1769753444610,-1724.39100863,0.0002112,2]
[404030143,1769753444631,-1275.60899137,0.0002112,2]
[404030144,1769753444640,-1335.69100863,0.0002113,2]
[404030145,1769753444651,-1664.30899137,0.0002113,2]
[404030146,1769753444660,-2489.69100863,0.0002114,2]
[404030149,1769753445819,-26.52584863,9.546e-05,2]
[404030150,1769753446327,-1057.89190586,9.546e-05,2]
[404030155,1769753447396,-388.4911086,9.546e-05,2]
[404030156,1769753447405,-500.0,9.546e-05,2]
[404030157,1769753447415,-1472.90886309,9.546e-05,2]
[404030158,1769753447424,-1472.90886309,9.546e-05,2]
[404030159,1769753447434,-1472.90886309,9.546e-05,2]
[404030160,1769753447443,-1472.90886309,9.546e-05,2]
[404030161,1769753447452,-1331.64357255,9.546e-05,2]
[404030162,1769753550445,206.6695572,0.00034747,120]
[404030163,1769753670372,206.66955719,0.00034747,120]
[404030165,1769754550145,-500.0,9.542e-05,2]
[404030166,1769754550168,-500.0,9.542e-05,2]
[404030167,1769754550192,-500.0,9.542e-05,2]
[404030168,1769754550217,-500.0,9.542e-05,2]
[404030169,1769754550238,-500.0,9.542e-05,2]
[404030170,1769754550260,-500.0,9.542e-05,2]
[404030171,1769754550287,-291.37282692,9.542e-05,2]
[404030172,1769754550471,-500.0,9.542e-05,2]
[404030173,1769754550493,-500.0,9.542e-05,2]
[404030174,1769754550514,-234.93640014,9.542e-05,2]
[404030175,1769754621365,-265.06359986,9.542e-05,2]
[404030176,1769754621386,-265.06359986,9.542e-05,2]
[404030177,1769754621402,-234.93640014,9.542e-05,2]
[404030178,1769754621411,-193.77535578,9.542e-05,2]
[404030179,1769754621429,-67.65329786,9.542e-05,2]
[404030221,1769754632294,-300.042,9.542e-05,2]
[404030223,1769754632308,-132.30470214,9.542e-05,2]
[404030225,1769754632319,-500.0,9.542e-05,2]
[404030227,1769754632327,-500.0,9.542e-05,2]
[404030228,1769754632336,-500.0,9.542e-05,2]
[404030230,1769754632345,-500.0,9.542e-05,2]
[404030231,1769754632355,-500.0,9.542e-05,2]
[404030232,1769754632364,-500.0,9.542e-05,2]
[404030233,1769754632374,-500.0,9.542e-05,2]
[404030234,1769754632385,-500.0,9.542e-05,2]
[404030235,1769754632395,-390.14939059,9.542e-05,2]
[404030247,1769754638384,-109.85060941,9.542e-05,2]
[404030248,1769754638394,-500.0,9.542e-05,2]
[404030249,1769754638403,-500.0,9.542e-05,2]
[404030250,1769754638413,-500.0,9.542e-05,2]
[404030251,1769754638423,-500.0,9.542e-05,2]
[404030252,1769754638432,-500.0,9.542e-05,2]
[404030253,1769754638442,-500.0,9.542e-05,2]
[404030254,1769754638451,-500.0,9.542e-05,2]
[404030255,1769754638460,-500.0,9.542e-05,2]
[404030256,1769754638471,-500.0,9.542e-05,2]
[404030257,1769754638482,-500.0,9.542e-05,2]
[404030258,1769754638492,-500.0,9.542e-05,2]
[404030259,1769754638502,-500.0,9.542e-05,2]
[404030260,1769754638512,-500.0,9.542e-05,2]
[404030261,1769754638523,-500.0,9.542e-05,2]
[404030262,1769754638532,-416.43394632,9.542e-05,2]
[404030263,1769754638543,-500.0,9.542e-05,2]
[404030264,1769754638553,-500.0,9.542e-05,2]
[404030265,1769754638562,-500.0,9.542e-05,2]
[404030266,1769754638572,-500.0,9.542e-05,2]
[404030267,1769754638582,-500.0,9.542e-05,2]
[404030268,1769754638592,-500.0,9.542e-05,2]
[404030269,1769754638602,-500.0,9.542e-05,2]
[404030270,1769754638612,-500.0,9.542e-05,2]
[404030271,1769754638622,-500.0,9.542e-05,2]
[404030272,1769754638632,-500.0,9.542e-05,2]
[404030273,1769754638641,-500.0,9.542e-05,2]
[404030274,1769754638650,-500.0,9.542e-05,2]
[404030275,1769754638662,-500.0,9.542e-05,2]
[404030276,1769754638672,-500.0,9.542e-05,2]
[404030277,1769754638681,-500.0,9.542e-05,2]
[404030278,1769754638691,-500.0,9.542e-05,2]
[404030279,1769754638700,-500.0,9.542e-05,2]
[404030280,1769754638710,-450.0,9.542e-05,2]
[404030281,1769754638720,-500.0,9.542e-05,2]
[404030282,1769754638729,-191.49975116,9.543e-05,2]
[404030283,1769754638739,-554.0,9.544e-05,2]
[404030284,1769754638749,-300.0,9.736e-05,2]
[404030285,1769754638760,-300.0,9.736e-05,2]
[404030286,1769754638769,-300.0,9.736e-05,2]
[404030287,1769754638779,-300.0,9.736e-05,2]
[404030288,1769754638788,-300.0,9.736e-05,2]
[404030289,1769754638798,-300.0,9.736e-05,2]
[404030290,1769754638807,-300.0,9.736e-05,2]
[404030291,1769754638816,-300.0,9.736e-05,2]
[404030292,1769754638825,-300.0,9.736e-05,2]
[404030293,1769754638835,-300.0,9.736e-05,2]
[404030294,1769754638844,-300.0,9.736e-05,2]
[404030295,1769754638853,-300.0,9.736e-05,2]
[404030296,1769754638862,-300.0,9.736e-05,2]
[404030297,1769754638872,-300.0,9.736e-05,2]
[404030298,1769754638881,-300.0,9.736e-05,2]
[404030299,1769754638890,-600.0,9.736e-05,2]
[404030300,1769754638900,-155.27,0.0001,2]
[404030301,1769754638909,-150.0,0.00010094,2]
[404030302,1769754638919,-250.0,0.00010478,2]
[404030303,1769754638928,-720.0,0.00010709,2]
[404030304,1769754638937,-225.96970637,0.00011543,2]
[404030305,1769754638947,-864.0,0.0001178,2]
[404030306,1769754638956,-155.27,0.000122,2]
[404030307,1769754638965,-1000.0,0.00012958,2]
[404030308,1769754638976,-160.0,0.00012984,2]
[404030309,1769754638986,-1041.66666667,0.00012988,2]
[404030310,1769754638995,-526.15004826,0.00013273,2]
[404030311,1769754639006,-260.43966158,0.00013543,2]
[404030312,1769754639015,-500.0,0.00013699,2]
[404030313,1769754639024,-382.5284904,0.0001408,2]
[404030314,1769754639034,-1000.0,0.00014254,2]
[404030315,1769754639043,-244.0,0.00014254,2]
[404030316,1769754639052,-155.27,0.000145,2]
[404030317,1769754639062,-294.90961679,0.00015543,2]
[404030318,1769754639071,-1000.0,0.0001568,2]
[404030319,1769754639081,-492.0,0.0001568,2]
[404030320,1769754639091,-155.27,0.000167,2]
[404030321,1769754639100,-1000.0,0.00017247,2]
[404030322,1769754639109,-791.0,0.00017247,2]
[404030323,1769754639119,-329.379572,0.00017543,2]
[404030324,1769754639128,-200.0,0.00018774,3]
[404030325,1769754639138,-200.0,0.00018793,3]
[404030326,1769754639147,-200.0,0.00018812,3]
[404030327,1769754639156,-155.27,0.000189,2]
[404030328,1769754639165,-1000.0,0.00018972,2]
[404030329,1769754639174,-1000.0,0.00018972,2]
[404030330,1769754639184,-309.171,0.00019452,2]
[404030331,1769754639193,-363.84952721,0.00019543,2]
[404030332,1769754639202,-20110.6915145,0.00019802,2]
[404030333,1769754639211,-158.5974314,0.00019802,2]
[404030334,1769754639220,-161.53462202,0.00020085,5]
[404030335,1769754639230,-1140.56017778,0.00020333,2]
[404030336,1769754639240,-187.78006525,0.0002041,5]
[404030337,1769754639249,-194.72792766,0.0002041,5]
[404030338,1769754639258,-201.93286099,0.0002041,5]
[404030339,1769754639267,-209.40437684,0.0002041,5]
[404030340,1769754639276,-2127.23392893,0.0002041,5]
[404030341,1769754639285,-217.15233878,0.0002041,5]
[404030342,1769754639294,-225.18697532,0.0002041,5]
[404030343,1769754639303,-233.51889341,0.0002041,5]
[404030344,1769754639316,-242.15909246,0.0002041,5]
[404030345,1769754639325,-251.11897888,0.0002041,5]
[404030346,1769754639335,-260.4103811,0.0002041,5]
[404030347,1769754639343,-270.0455652,0.0002041,5]
[404030348,1769754639354,-280.03725112,0.0002041,5]
[404030349,1769754639363,-290.39862941,0.0002041,5]
[404030350,1769754639372,-301.1433787,0.0002041,5]
[404030351,1769754639382,-156.0,0.00020603,3]
[404030352,1769754639393,-204.0832067,0.00020829,2]
[404030353,1769754639403,-282.02499249,0.00020831,2]
[404030354,1769754639412,-1000.0,0.00020869,2]
[404030355,1769754639421,-1000.0,0.00020869,2]
[404030356,1769754639431,-579.0,0.00020869,2]
[404030357,1769754639440,-4387.48,0.0002089,10]
[404030358,1769754639450,-3656.23,0.0002089,10]